fUSD/lending_fUSD_20240625
["ID","MTS","AMOUNT","RATE_DAILY","PERIOD"]
[330387847,1719340251237,-543.34,0.00019452,2]
[330387848,1719340251247,-639.52,0.00019452,2]
[330387849,1719340251256,-1173.98,0.00019452,2]
[330387850,1719340251266,-2000.0,0.00019452,2]
[330387851,1719340251275,-200.0,0.00019452,2]
[330387852,1719340251285,-500.0,0.00019452,2]
[330387853,1719340251295,-927.88,0.00019452,2]
[330387854,1719340251304,-500.0,0.00019452,2]
[330387855,1719340251314,-500.0,0.00019452,2]
[330387856,1719340251323,-684.05,0.00019452,2]
[330387857,1719340251333,-1634.26,0.00019452,2]
[330387858,1719340251343,-500.0,0.00019452,2]
[330387859,1719340251352,-500.0,0.00019452,2]
[330387860,1719340251361,-2118.06,0.00019452,2]
[330387861,1719340251371,-304.08906024,0.00019452,2]
[330387862,1719340251380,-626.52841673,0.00019452,2]
[330387863,1719340251390,-1147.89,0.00019452,2]
[330387864,1719340251399,-750.77,0.00019452,2]
[330387865,1719340251408,-500.0,0.00019452,2]
[330387866,1719340251418,-500.0,0.00019452,2]
[330387867,1719340251429,-500.0,0.00019452,2]
[330387868,1719340251438,-500.0,0.00019452,2]
[330387869,1719340251447,-500.0,0.00019452,2]
[330387870,1719340251457,-500.0,0.00019452,2]
[330387871,1719340251466,-743.45,0.00019452,2]
[330387872,1719340251475,-1416.45,0.00019452,2]
[330387873,1719340251485,-895.96,0.00019452,2]
[330387874,1719340251495,-500.0,0.00019452,2]
[330387875,1719340251505,-500.0,0.00019452,2]
[330387876,1719340251515,-500.0,0.00019452,2]
[330387877,1719340251524,-737.3,0.00019452,2]
[330387878,1719340251534,-500.0,0.00019452,2]
[330387879,1719340251543,-500.0,0.00019452,2]
[330387880,1719340251552,-829.89,0.00019452,2]
[330387881,1719340251562,-500.0,0.00019452,2]
[330387882,1719340251572,-500.0,0.00019452,2]
[330387883,1719340251582,-500.0,0.00019452,2]
[330387884,1719340251592,-500.0,0.00019452,2]
[330387885,1719340251602,-500.0,0.00019452,2]
[330387886,1719340251611,-500.0,0.00019452,2]
[330387887,1719340251620,-500.0,0.00019452,2]
[330387888,1719340251629,-785.29,0.00019452,2]
[330387889,1719340251639,-665.98,0.00019452,2]
[330387890,1719340251649,-1010.81,0.00019452,2]
[330387891,1719340251659,-974.35,0.00019452,2]
[330387892,1719340251668,-2535.58,0.00019452,2]
[330387893,1719340251679,-500.0,0.00019452,2]
[330387894,1719340251688,-500.0,0.00019452,2]
[330387895,1719340251697,-500.0,0.00019452,2]
[330387896,1719340251707,-500.0,0.00019452,2]
[330387897,1719340251716,-738.46,0.00019452,2]
[330387898,1719340251726,-500.0,0.00019452,2]
[330387899,1719340251735,-500.0,0.00019452,2]
[330387900,1719340251745,-1137.86,0.00019452,2]
[330387901,1719340251754,-643.39,0.00019452,2]
[330387902,1719340251764,-500.0,0.00019452,2]
[330387903,1719340251773,-500.0,0.00019452,2]
[330387904,1719340251782,-500.0,0.00019452,2]
[330387905,1719340251792,-500.0,0.00019452,2]
[330387906,1719340251801,-734.61,0.00019452,2]
[330387907,1719340251811,-791.27,0.00019452,2]
[330387908,1719340251820,-500.0,0.00019452,2]
[330387909,1719340251830,-500.0,0.00019452,2]
[330387910,1719340251839,-500.0,0.00019452,2]
[330387911,1719340251848,-631.5068928,0.00019452,2]
[330387912,1719340251858,-1063.37,0.00019452,2]
[330387913,1719340251867,-243.30394167,0.00019452,2]
[330387914,1719340251877,-500.0,0.00019452,2]
[330387915,1719340251886,-617.43,0.00019452,2]
[330387916,1719340251896,-500.0,0.00019452,2]
[330387917,1719340251906,-500.0,0.00019452,2]
[330387918,1719340251917,-500.0,0.00019452,2]
[330387919,1719340251927,-500.0,0.00019452,2]
[330387920,1719340251938,-500.0,0.00019452,2]
[330387921,1719340251948,-770.85,0.00019452,2]
[330387922,1719340251959,-642.73,0.00019452,2]
[330387923,1719340251968,-500.0,0.00019452,2]
[330387924,1719340251978,-873.61,0.00019452,2]
[330387925,1719340251988,-500.0,0.00019452,2]
[330387926,1719340251999,-500.0,0.00019452,2]
[330387927,1719340252009,-500.0,0.00019452,2]
[330387928,1719340252018,-500.0,0.00019452,2]
[330387929,1719340252028,-727.53,0.00019452,2]
[330387930,1719340252037,-1171.51,0.00019452,2]
[330387931,1719340252303,-500.0,0.00019452,2]
[330387932,1719340252378,-396.97182141,0.00019452,2]
[330387933,1719340252388,-500.0,0.00019452,2]
[330387934,1719340252397,-500.0,0.00019452,2]
[330387935,1719340252407,-891.63,0.00019452,2]
[330387936,1719340252418,-701.47,0.00019452,2]
[330387937,1719340252429,-500.0,0.00019452,2]
[330387938,1719340252438,-1146.32,0.00019452,2]
[330387939,1719340252447,-500.0,0.00019452,2]
[330387940,1719340252457,-500.0,0.00019452,2]
[330387941,1719340252469,-762.16,0.00019452,2]
[330387942,1719340252478,-678.32,0.00019452,2]
[330387943,1719340252487,-500.0,0.00019452,2]
[330387944,1719340252496,-891.68,0.00019452,2]
[330387945,1719340252505,-500.0,0.00019452,2]
[330387946,1719340252514,-164.51317378,0.00019452,2]
[330387947,1719340252524,-498.55043632,0.00019452,2]
[330387948,1719340252532,-500.0,0.00019452,2]
[330387949,1719340252542,-500.0,0.00019452,2]
[330387950,1719340252551,-500.0,0.00019452,2]
[330387951,1719340252559,-897.81,0.00019452,2]
[330387952,1719340252568,-500.0,0.00019452,2]
[330387953,1719340252579,-500.0,0.00019452,2]
[330387954,1719340252588,-500.0,0.00019452,2]
[330387955,1719340252597,-1128.1,0.00019452,2]
[330387956,1719340252607,-533.3,0.00019452,2]
[330387957,1719340252616,-500.0,0.00019452,2]
[330387958,1719340252625,-500.0,0.00019452,2]
[330387959,1719340252635,-697.69,0.00019452,2]
[330387960,1719340252645,-500.0,0.00019452,2]
[330387961,1719340252655,-575.03,0.00019452,2]
[330387962,1719340252664,-207.31961585,0.00019452,2]
[330387963,1719340252673,-500.0,0.00019452,2]
[330387964,1719340252685,-500.0,0.00019452,2]
[330387965,1719340252694,-596.04,0.00019452,2]
[330387966,1719340252704,-500.0,0.00019452,2]
[330387967,1719340252713,-500.0,0.00019452,2]
[330387968,1719340252723,-500.0,0.00019452,2]
[330387969,1719340252732,-500.0,0.00019452,2]
[330387970,1719340252742,-500.0,0.00019452,2]
[330387971,1719340252751,-500.0,0.00019452,2]
[330387972,1719340252761,-1051.68,0.00019452,2]
[330387973,1719340252770,-500.0,0.00019452,2]
[330387974,1719340252779,-500.0,0.00019452,2]
[330387975,1719340252789,-500.0,0.00019452,2]
[330387976,1719340252799,-500.0,0.00019452,2]
[330387977,1719340252808,-500.0,0.00019452,2]
[330387978,1719340252818,-1095.4,0.00019452,2]
[330387979,1719340252828,-568.00286546,0.00019452,2]
[330387980,1719340252837,-699.87,0.00019452,2]
[330387981,1719340252847,-1003.8,0.00019452,2]
[330387982,1719340252856,-704.86,0.00019452,2]
[330387983,1719340252866,-777.4,0.00019452,2]
[330387984,1719340252875,-500.0,0.00019452,2]
[330387985,1719340252885,-500.0,0.00019452,2]
[330387986,1719340252895,-500.0,0.00019452,2]
[330387987,1719340252904,-500.0,0.00019452,2]
[330387988,1719340252920,-500.0,0.00019452,2]
[330387989,1719340252931,-500.0,0.00019452,2]
[330387990,1719340252941,-500.0,0.00019452,2]
[330387991,1719340252951,-1213.99,0.00019452,2]
[330387992,1719340252962,-500.0,0.00019452,2]
[330387993,1719340252972,-632.15,0.00019452,2]
[330387994,1719340252981,-500.0,0.00019452,2]
[330387995,1719340252990,-500.0,0.00019452,2]
[330387996,1719340253002,-500.0,0.00019452,2]
[330387997,1719340253011,-919.9,0.00019452,2]
[330387998,1719340253020,-500.0,0.00019452,2]
[330387999,1719340253030,-329.54802131,0.00019452,2]
[330388000,1719340253039,-500.0,0.00019452,2]
[330388001,1719340253050,-500.0,0.00019452,2]
[330388002,1719340253060,-500.0,0.00019452,2]
[330388003,1719340253069,-500.0,0.00019452,2]
[330388004,1719340253079,-500.0,0.00019452,2]
[330388005,1719340253088,-500.0,0.00019452,2]
[330388006,1719340253098,-500.0,0.00019452,2]
[330388007,1719340253107,-500.0,0.00019452,2]
[330388008,1719340253117,-500.0,0.00019452,2]
[330388009,1719340253128,-500.0,0.00019452,2]
[330388010,1719340253138,-500.0,0.00019452,2]
[330388011,1719340253148,-500.0,0.00019452,2]
[330388012,1719340253158,-605.04341369,0.00019452,2]
[330388013,1719340253168,-500.0,0.00019452,2]
[330388014,1719340253178,-500.0,0.00019452,2]
[330388015,1719340253187,-835.04,0.00019452,2]
[330388016,1719340253196,-500.0,0.00019452,2]
[330388017,1719340253207,-915.84,0.00019452,2]
[330388018,1719340253217,-500.0,0.00019452,2]
[330388019,1719340253226,-557.27,0.00019452,2]
[330388020,1719340253235,-500.0,0.00019452,2]
[330388021,1719340253245,-500.0,0.00019452,2]
[330388022,1719340253255,-500.0,0.00019452,2]
[330388023,1719340253264,-500.0,0.00019452,2]
[330388024,1719340253274,-500.0,0.00019452,2]
[330388025,1719340253283,-500.0,0.00019452,2]
[330388026,1719340253293,-500.0,0.00019452,2]
[330388027,1719340253302,-500.0,0.00019452,2]
[330388028,1719340253312,-500.0,0.00019452,2]
[330388029,1719340253321,-647.37,0.00019452,2]
[330388030,1719340253330,-500.0,0.00019452,2]
[330388031,1719340253339,-511.9015031,0.00019452,2]
[330388032,1719340253349,-500.0,0.00019452,2]
[330388033,1719340253359,-594.94,0.00019452,2]
[330388034,1719340253368,-562.86,0.00019452,2]
[330388035,1719340253379,-500.0,0.00019452,2]
[330388036,1719340253390,-500.0,0.00019452,2]
[330388037,1719340253401,-952.3,0.00019452,2]
[330388038,1719340253410,-500.0,0.00019452,2]
[330388039,1719340253421,-500.0,0.00019452,2]
[330388040,1719340253433,-736.44,0.00019452,2]
[330388041,1719340253443,-500.0,0.00019452,2]
[330388042,1719340253453,-500.0,0.00019452,2]
[330388043,1719340253462,-502.54,0.00019452,2]
[330388044,1719340253471,-500.0,0.00019452,2]
[330388045,1719340253481,-500.0,0.00019452,2]
[330388046,1719340253492,-844.36,0.00019452,2]
[330388047,1719340253501,-789.71,0.00019452,2]
[330388048,1719340253511,-500.0,0.00019452,2]
[330388049,1719340253522,-1037.28,0.00019452,2]
[330388050,1719340253531,-500.0,0.00019452,2]
[330388051,1719340253540,-500.0,0.00019452,2]
[330388052,1719340253550,-500.0,0.00019452,2]
[330388053,1719340253559,-500.0,0.00019452,2]
[330388054,1719340253568,-500.0,0.00019452,2]
[330388055,1719340253578,-500.0,0.00019452,2]
[330388056,1719340253587,-2365.67,0.00019452,2]
[330388057,1719340253596,-500.0,0.00019452,2]
[330388058,1719340253606,-500.0,0.00019452,2]
[330388059,1719340253616,-500.0,0.00019452,2]
[330388060,1719340253625,-1120.71,0.00019452,2]
[330388061,1719340253635,-500.0,0.00019452,2]
[330388062,1719340253645,-500.0,0.00019452,2]
[330388063,1719340253655,-1217.12,0.00019452,2]
[330388064,1719340253664,-500.0,0.00019452,2]
[330388065,1719340253674,-500.0,0.00019452,2]
[330388066,1719340253684,-500.0,0.00019452,2]
[330388067,1719340253694,-1200.45,0.00019452,2]
[330388068,1719340253703,-500.0,0.00019452,2]
[330388069,1719340253712,-836.32,0.00019452,2]
[330388070,1719340253722,-500.0,0.00019452,2]
[330388071,1719340253744,-500.0,0.00019452,2]
[330388072,1719340253754,-508.6,0.00019452,2]
[330388073,1719340253764,-500.0,0.00019452,2]
[330388074,1719340253775,-500.0,0.00019452,2]
[330388075,1719340253785,-500.0,0.00019452,2]
[330388076,1719340253795,-2489.41,0.00019452,2]
[330388077,1719340253806,-500.0,0.00019452,2]
[330388078,1719340253816,-595.46,0.00019452,2]
[330388079,1719340253827,-684.87,0.00019452,2]
[330388080,1719340253837,-1303.44,0.00019452,2]
[330388081,1719340253847,-1018.13,0.00019452,2]
[330388082,1719340253857,-500.0,0.00019452,2]
[330388083,1719340253867,-491.7051968,0.00019452,2]
[330388084,1719340253877,-500.0,0.00019452,2]
[330388085,1719340253887,-500.0,0.00019452,2]
[330388086,1719340253897,-655.84,0.00019452,2]
[330388087,1719340253908,-747.94,0.00019452,2]
[330388088,1719340253922,-500.0,0.00019452,2]
[330388089,1719340253933,-500.0,0.00019452,2]
[330388090,1719340253943,-500.0,0.00019452,2]
[330388091,1719340253954,-667.13,0.00019452,2]
[330388092,1719340253963,-123.86419649,0.00019452,2]
[330388093,1719340296368,290.2611,0.00013997,2]
[330388095,1719340364474,152.56,0.00018849,30]
[330388097,1719340385716,180.98668083,0.00013997,2]
[330388098,1719340397178,1365.6260186,0.00013997,2]
[330388099,1719340401154,1605.40936599,0.00013997,2]
[330388100,1719340445581,2266.50196297,0.000118,2]
[330388104,1719340546685,1365.6260186,0.00014303,2]
[330388105,1719340570301,5380.72155244,0.00014999,2]
[330388107,1719340601506,155.0,0.00014999,2]
[330388109,1719340638928,1967.72241333,0.00014999,2]
[330388110,1719340655264,200.0,0.00014924,30]
[330388111,1719340655308,200.0,0.00014924,30]
[330388112,1719340655360,200.0,0.00014924,30]
[330388113,1719340655419,200.0,0.00014924,30]
[330388114,1719340655477,277.58744917,0.00014924,30]
[330388116,1719340727590,1069.94736295,0.00014999,2]
[330388117,1719340751980,400.6022657,0.00025,60]
[330388118,1719340764224,1365.88128983,0.00014924,2]
[330388119,1719340774091,156.32206566,0.00014999,2]
[330388120,1719340788694,169.43,0.00013812,2]
[330388121,1719340816949,2491.01847886,0.00014999,2]
[330388124,1719340864190,1365.37074737,0.00014999,2]
[330388125,1719340869233,184.13157406,0.00014999,2]
[330388128,1719340984609,152.56,0.00018849,30]
[330388130,1719341030614,283.50525412,0.00014999,2]
[330388133,1719341047540,170.09647018,0.00014999,2]
[330388134,1719341054584,310.0,0.00014999,2]
[330388136,1719341061743,200.0,0.00014924,30]
[330388137,1719341061782,200.0,0.00014924,30]
[330388138,1719341061812,200.0,0.00014924,30]
[330388139,1719341061844,200.0,0.00014924,30]
[330388140,1719341061894,200.0,0.00014924,30]
[330388141,1719341080210,1365.88128983,0.00014999,2]
[330388143,1719341095272,684.3304205,0.00014999,2]
[330388144,1719341114222,1365.88128983,0.00014999,2]
[330388147,1719341129026,7546.9748219,0.00014999,2]
[330388148,1719341129398,540.54,0.00014983,2]
[330388150,1719341154817,155.0,0.00014999,2]
[330388151,1719341155345,5377.72346154,0.00014999,2]
[330388154,1719341216206,1365.88128983,0.00014999,2]
[330388155,1719341229041,7546.9748219,0.00014999,2]
[330388157,1719341253134,163.64202156,0.00015358,2]
[330388159,1719341287318,27230.27163246,0.00015358,2]
[330388160,1719341289755,364.844001,0.00015358,2]
[330388161,1719341297427,1364.86020491,0.00015358,2]
[330388166,1719341329772,159.95883883,0.00014999,2]
[330388167,1719341334201,526.547858,0.00015358,2]
[330388168,1719341336550,7546.9748219,0.00015358,2]
[330388173,1719341394314,155.0,0.00014999,2]
[330388174,1719341416605,-181.01265432,0.00015999,2]
[330388175,1719341416628,-378.6472136,0.00015999,2]
[330388176,1719341416650,-155.0,0.00016086,2]
[330388177,1719341416673,-301.37576212,0.00016913,2]
[330388178,1719341416698,-281.16809237,0.00016913,2]
[330388179,1719341416721,-17744.1,0.00016914,2]
[330388182,1719341428888,-826.09,0.00016966,2]
[330388183,1719341428910,-299.99,0.00016966,4]
[330388184,1719341428934,-200.0,0.00017124,2]
[330388185,1719341428956,-250.0,0.00017178,2]
[330388186,1719341428980,-250.0,0.00017184,2]
[330388187,1719341429206,-831.0590105,0.00017222,2]
[330388188,1719341429229,-1069.13006944,0.00017223,2]
[330388189,1719341429253,-169.23,0.00017224,2]
[330388190,1719341429275,-155.09368845,0.00017246,2]
[330388191,1719341429301,-540.54,0.00017247,2]
[330388192,1719341429324,-690.10215601,0.00017297,2]
[330388193,1719341431780,155.0,0.00016086,2]
[330388226,1719341432740,-173.04,0.00017455,2]
[330388227,1719341432750,-375.30318324,0.00017475,2]
[330388228,1719341432762,-624.69681676,0.00017475,2]
[330388229,1719341432771,-41.72318324,0.00017711,2]
[330388230,1719341432783,-393.21401567,0.00017711,2]
[330388231,1719341432793,-155.0,0.00017711,2]
[330388232,1719341432802,-150.3,0.00017712,2]
[330388233,1719341432811,-684.3304205,0.00017762,2]
[330388234,1719341432822,-526.2798675,0.00017807,2]
[330388235,1719341432832,-1262.66292794,0.00017807,2]
[330388236,1719341432842,-163.56143312,0.00017807,2]
[330388237,1719341432852,-335.74782953,0.00018473,2]
[330388238,1719341432862,-819.21882728,0.00018615,2]
[330388239,1719341432872,-1750.08927403,0.00018615,2]
[330388240,1719341432884,-5033.10646576,0.00018615,2]
[330388241,1719341432896,-763.77908211,0.00018615,2]
[330388242,1719341432905,-846.5390312,0.00018615,2]
[330388243,1719341432917,-11451.29864799,0.00018615,2]
[330388244,1719341432930,-602.4599999,0.00018615,2]
[330388245,1719341432943,-331.9599993,0.00018615,2]
[330388246,1719341432955,-13507.32656167,0.00018615,2]
[330388247,1719341432964,-155.26250993,0.00018615,2]
[330388248,1719341432974,-363.8321875,0.00018877,2]
[330388249,1719341432984,-208.2521774,0.00018877,2]
[330388250,1719341432994,-523.7195419,0.00018877,2]
[330388251,1719341433004,-4191.1213,0.00018878,2]
[330388252,1719341433014,-159.31344584,0.00019078,2]
[330388253,1719341433024,-171.11148442,0.00019078,2]
[330388254,1719341433034,-264.50658436,0.00019078,2]
[330388255,1719341433043,-185.87693565,0.00019168,2]
[330388257,1719341433053,-500.0,0.00019178,2]
[330388259,1719341433062,-500.0,0.00019178,2]
[330388261,1719341433072,-500.0,0.00019178,2]
[330388263,1719341433081,-200.0,0.00019178,2]
[330388265,1719341433091,-500.0,0.00019178,2]
[330388267,1719341433100,-500.0,0.00019178,2]
[330388269,1719341433110,-500.0,0.00019178,2]
[330388271,1719341433120,-500.0,0.00019178,2]
[330388273,1719341433130,-500.0,0.00019178,2]
[330388275,1719341433140,-500.0,0.00019178,2]
[330388276,1719341433149,-500.0,0.00019178,2]
[330388277,1719341433160,-500.0,0.00019178,2]
[330388278,1719341433169,-1043.5,0.00019178,2]
[330388279,1719341433179,-500.0,0.00019178,2]
[330388280,1719341433189,-500.0,0.00019178,2]
[330388281,1719341433199,-500.0,0.00019178,2]
[330388282,1719341433208,-730.37,0.00019178,2]
[330388283,1719341433218,-500.0,0.00019178,2]
[330388284,1719341433228,-500.0,0.00019178,2]
[330388285,1719341433237,-592.22,0.00019178,2]
[330388286,1719341433247,-519.84,0.00019178,2]
[330388287,1719341433257,-500.0,0.00019178,2]
[330388288,1719341433266,-500.0,0.00019178,2]
[330388289,1719341433275,-600.13,0.00019178,2]
[330388290,1719341433286,-705.15,0.00019178,2]
[330388291,1719341433296,-500.0,0.00019178,2]
[330388292,1719341433310,-500.0,0.00019178,2]
[330388293,1719341433320,-503.83305057,0.00019178,2]
[330388294,1719341433329,-500.0,0.00019178,2]
[330388295,1719341433339,-500.0,0.00019178,2]
[330388296,1719341433349,-500.0,0.00019178,2]
[330388297,1719341433359,-500.0,0.00019178,2]
[330388298,1719341433368,-500.0,0.00019178,2]
[330388299,1719341433379,-500.0,0.00019178,2]
[330388300,1719341433389,-500.0,0.00019178,2]
[330388301,1719341433399,-500.0,0.00019178,2]
[330388302,1719341433408,-500.0,0.00019178,2]
[330388303,1719341433419,-500.0,0.00019178,2]
[330388304,1719341433428,-500.0,0.00019178,2]
[330388305,1719341433438,-520.45,0.00019178,2]
[330388306,1719341433448,-2040.12,0.00019178,2]
[330388307,1719341433458,-719.94,0.00019178,2]
[330388308,1719341433467,-500.0,0.00019178,2]
[330388309,1719341433477,-500.0,0.00019178,2]
[330388310,1719341433487,-500.0,0.00019178,2]
[330388311,1719341433496,-729.37,0.00019178,2]
[330388312,1719341433506,-500.0,0.00019178,2]
[330388313,1719341433516,-522.52,0.00019178,2]
[330388314,1719341433526,-500.0,0.00019178,2]
[330388315,1719341433536,-500.0,0.00019178,2]
[330388316,1719341433545,-500.0,0.00019178,2]
[330388317,1719341433556,-514.05385129,0.00019178,2]
[330388318,1719341433566,-500.0,0.00019178,2]
[330388319,1719341433576,-500.0,0.00019178,2]
[330388320,1719341433586,-500.0,0.00019178,2]
[330388321,1719341433595,-500.0,0.00019178,2]
[330388322,1719341433605,-500.0,0.00019178,2]
[330388323,1719341433615,-1064.01,0.00019178,2]
[330388324,1719341433624,-500.0,0.00019178,2]
[330388325,1719341433634,-706.94,0.00019178,2]
[330388326,1719341433644,-500.0,0.00019178,2]
[330388327,1719341433654,-500.0,0.00019178,2]
[330388328,1719341433663,-500.0,0.00019178,2]
[330388329,1719341433676,-500.0,0.00019178,2]
[330388330,1719341433685,-500.0,0.00019178,2]
[330388331,1719341433694,-500.0,0.00019178,2]
[330388332,1719341433705,-500.0,0.00019178,2]
[330388333,1719341433716,-500.0,0.00019178,2]
[330388334,1719341433726,-603.37,0.00019178,2]
[330388335,1719341433735,-500.0,0.00019178,2]
[330388336,1719341433746,-500.0,0.00019178,2]
[330388337,1719341433756,-500.0,0.00019178,2]
[330388338,1719341433765,-500.0,0.00019178,2]
[330388339,1719341433775,-500.0,0.00019178,2]
[330388340,1719341433785,-500.0,0.00019178,2]
[330388341,1719341433795,-508.15876004,0.00019178,2]
[330388342,1719341433805,-500.0,0.00019178,2]
[330388343,1719341433815,-500.0,0.00019178,2]
[330388344,1719341433825,-500.0,0.00019178,2]
[330388345,1719341433835,-500.0,0.00019178,2]
[330388346,1719341433844,-500.0,0.00019178,2]
[330388347,1719341433855,-500.0,0.00019178,2]
[330388348,1719341433866,-500.0,0.00019178,2]
[330388349,1719341433876,-930.53,0.00019178,2]
[330388350,1719341433887,-500.0,0.00019178,2]
[330388351,1719341433896,-500.0,0.00019178,2]
[330388352,1719341433907,-562.02,0.00019178,2]
[330388353,1719341433916,-500.0,0.00019178,2]
[330388354,1719341433926,-500.0,0.00019178,2]
[330388355,1719341433936,-500.0,0.00019178,2]
[330388356,1719341433946,-500.0,0.00019178,2]
[330388357,1719341433957,-500.0,0.00019178,2]
[330388358,1719341433967,-500.0,0.00019178,2]
[330388359,1719341433976,-500.0,0.00019178,2]
[330388360,1719341433986,-500.0,0.00019178,2]
[330388361,1719341433996,-500.0,0.00019178,2]
[330388362,1719341434007,-500.0,0.00019178,2]
[330388363,1719341434018,-500.0,0.00019178,2]
[330388364,1719341434028,-512.77,0.00019178,2]
[330388365,1719341434038,-500.0,0.00019178,2]
[330388366,1719341434049,-500.0,0.00019178,2]
[330388367,1719341434060,-500.0,0.00019178,2]
[330388368,1719341434070,-500.0,0.00019178,2]
[330388369,1719341434081,-500.0,0.00019178,2]
[330388370,1719341434092,-500.0,0.00019178,2]
[330388371,1719341434102,-500.0,0.00019178,2]
[330388372,1719341434113,-500.0,0.00019178,2]
[330388373,1719341434123,-581.35,0.00019178,2]
[330388374,1719341434133,-500.0,0.00019178,2]
[330388375,1719341434144,-500.0,0.00019178,2]
[330388376,1719341434154,-228.57639803,0.00019178,2]
[330388377,1719341434165,-500.0,0.00019178,2]
[330388378,1719341434176,-1044.42,0.00019178,2]
[330388379,1719341434186,-500.0,0.00019178,2]
[330388380,1719341434196,-618.97,0.00019178,2]
[330388381,1719341434206,-500.0,0.00019178,2]
[330388382,1719341434216,-500.0,0.00019178,2]
[330388383,1719341434225,-500.0,0.00019178,2]
[330388384,1719341434235,-500.0,0.00019178,2]
[330388385,1719341434245,-500.0,0.00019178,2]
[330388386,1719341434255,-550.03,0.00019178,2]
[330388387,1719341434266,-651.1,0.00019178,2]
[330388388,1719341434275,-500.0,0.00019178,2]
[330388389,1719341434285,-579.29,0.00019178,2]
[330388390,1719341434296,-500.0,0.00019178,2]
[330388391,1719341434310,-879.23,0.00019178,2]
[330388392,1719341434319,-500.0,0.00019178,2]
[330388393,1719341434329,-1512.54,0.00019178,2]
[330388394,1719341434340,-559.9,0.00019178,2]
[330388395,1719341434349,-537.81,0.00019178,2]
[330388396,1719341434360,-500.0,0.00019178,2]
[330388397,1719341434369,-500.0,0.00019178,2]
[330388398,1719341434380,-500.0,0.00019178,2]
[330388399,1719341434389,-500.0,0.00019178,2]
[330388400,1719341434398,-500.0,0.00019178,2]
[330388401,1719341434408,-636.71692825,0.00019178,2]
[330388402,1719341434418,-500.0,0.00019178,2]
[330388403,1719341434428,-500.0,0.00019178,2]
[330388404,1719341434437,-779.08,0.00019178,2]
[330388405,1719341434448,-500.0,0.00019178,2]
[330388406,1719341434458,-780.74,0.00019178,2]
[330388407,1719341434468,-831.56,0.00019178,2]
[330388408,1719341434478,-500.0,0.00019178,2]
[330388409,1719341434487,-564.03,0.00019178,2]
[330388410,1719341434497,-677.95,0.00019178,2]
[330388411,1719341434882,-500.0,0.00019178,2]
[330388412,1719341434892,-500.0,0.00019178,2]
[330388413,1719341434901,-500.0,0.00019178,2]
[330388414,1719341434911,-500.0,0.00019178,2]
[330388415,1719341434920,-517.21537368,0.00019178,2]
[330388416,1719341434930,-868.67,0.00019178,2]
[330388417,1719341434939,-500.0,0.00019178,2]
[330388418,1719341434948,-500.0,0.00019178,2]
[330388419,1719341434958,-500.0,0.00019178,2]
[330388420,1719341434968,-580.93,0.00019178,2]
[330388421,1719341434978,-500.0,0.00019178,2]
[330388422,1719341434988,-500.0,0.00019178,2]